fUSD/lending_fUSD_20241216
["ID","MTS","AMOUNT","RATE_DAILY","PERIOD"]
[345601736,1734378632613,-180.32,0.00021818,2]
[345601739,1734378632622,-250.0,0.00021825,2]
[345601742,1734378632632,-961.02,0.00021835,2]
[345601745,1734378632641,-1500.0,0.00021851,2]
[345601750,1734378632652,-468.63,0.00021876,2]
[345601752,1734378632661,-523.0,0.00021943,2]
[345601756,1734378632670,-25310.5335615,0.0002211,2]
[345601758,1734378632681,-155.63677492,0.0002211,2]
[345601761,1734378632690,-5212.5196,0.00022137,10]
[345601763,1734378632699,-2000.0,0.00022158,2]
[345601765,1734378632709,-27131.0,0.00022159,3]
[345601767,1734378632717,-420.0,0.00022173,2]
[345601769,1734378632727,-1024.07,0.0002221,2]
[345601770,1734378632736,-200.0,0.00022212,2]
[345601772,1734378632746,-272.46,0.00022214,2]
[345601774,1734378632755,-150.0,0.00022259,2]
[345601776,1734378632764,-2751.0,0.00022268,2]
[345601778,1734378632773,-164.32,0.00022272,2]
[345601780,1734378632783,-736.62428005,0.00022316,2]
[345601782,1734378632792,-500.0,0.00022393,2]
[345601784,1734378632802,-500.0,0.00022393,2]
[345601786,1734378632817,-500.0,0.00022393,2]
[345601788,1734378632826,-12412.5,0.00022394,2]
[345601790,1734378632835,-500.0,0.000224,2]
[345601792,1734378632845,-500.0,0.000224,2]
[345601794,1734378632855,-500.0,0.000224,2]
[345601796,1734378632864,-500.0,0.000224,2]
[345601798,1734378632874,-914.85746974,0.000224,2]
[345601799,1734378632883,-25310.53356143,0.0002242,2]
[345601800,1734378632893,-150.94,0.00022446,30]
[345601801,1734378632903,-150.0,0.00022488,4]
[345601802,1734378632916,-150.0,0.00022488,4]
[345601803,1734378632928,-150.0,0.00022488,4]
[345601804,1734378632937,-150.0,0.00022488,4]
[345601805,1734378633096,-2000.0,0.00022499,2]
[345601806,1734378633106,-352.95,0.00022546,2]
[345601807,1734378633116,-1965.65,0.00022563,2]
[345601808,1734378633127,-25310.53356143,0.0002273,2]
[345601809,1734378633137,-500.0,0.0002274,2]
[345601810,1734378633148,-150.0,0.00022765,4]
[345601811,1734378633157,-736.62428005,0.00022962,2]
[345601812,1734378633167,-200.0,0.00023,2]
[345601813,1734378633177,-1024.07,0.00023032,2]
[345601814,1734378633186,-155.63677492,0.0002304,2]
[345601815,1734378633196,-25310.53356143,0.0002304,2]
[345601816,1734378633206,-150.0,0.00023043,4]
[345601817,1734378633215,-150.0,0.00023112,4]
[345601818,1734378633225,-150.0,0.00023235,2]
[345601819,1734378633235,-1836.0,0.000233,2]
[345601820,1734378633245,-153.0,0.00023311,2]
[345601821,1734378633255,-153.0,0.00023311,2]
[345601822,1734378633265,-153.0,0.00023312,2]
[345601823,1734378633275,-153.0,0.00023312,2]
[345601824,1734378633285,-153.0,0.00023312,2]
[345601825,1734378633294,-153.0,0.00023313,2]
[345601826,1734378633304,-153.0,0.00023313,2]
[345601827,1734378633317,-150.0,0.00023321,4]
[345601828,1734378633327,-272.46,0.00023324,2]
[345601829,1734378633336,-25310.53356143,0.0002335,2]
[345601830,1734378633347,-352.95,0.00023351,2]
[345601831,1734378633357,-500.0,0.00023356,2]
[345601832,1734378633366,-500.0,0.00023356,2]
[345601833,1734378633376,-233.96,0.0002349,2]
[345601834,1734378633386,-152.32602937,0.00023507,2]
[345601835,1734378633395,-298.8729,0.00023555,2]
[345601836,1734378633405,-150.0,0.00023598,4]
[345601837,1734378633415,-736.62428005,0.00023608,2]
[345601838,1734378633425,-150.0,0.00023616,2]
[345601839,1734378633434,-14899.0,0.00023655,2]
[345601840,1734378633444,-25310.53356143,0.0002366,2]
[345601841,1734378633454,-235.0,0.0002372,2]
[345601842,1734378633464,-150.0,0.00023737,4]
[345601843,1734378633474,-150.0,0.00023737,4]
[345601844,1734378633484,-552.42,0.0002375,2]
[345601845,1734378633494,-152.32602937,0.00023753,2]
[345601846,1734378633504,-1024.07,0.00023854,2]
[345601847,1734378633514,-150.0,0.00023876,4]
[345601848,1734378633523,-1000.0,0.000239,2]
[345601849,1734378633534,-1400.0,0.000239,8]
[345601850,1734378633543,-2500.0,0.000239,2]
[345601851,1734378633553,-159.69194973,0.000239,2]
[345601852,1734378633572,-1500.0,0.00023922,2]
[345601853,1734378633581,-2000.0,0.00023924,2]
[345601854,1734378633591,-150.0,0.00023929,2]
[345601855,1734378633600,-150.0,0.00023956,2]
[345601856,1734378633610,-155.63677492,0.00023969,2]
[345601857,1734378633619,-25310.53356143,0.0002397,2]
[345601858,1734378633629,-152.32602937,0.00024,2]
[345601859,1734378633638,-500.0,0.00024,30]
[345601860,1734378633648,-500.0,0.00024,30]
[345601861,1734378633658,-500.0,0.00024,30]
[345601862,1734378633667,-500.0,0.00024,30]
[345601863,1734378633678,-500.0,0.00024,30]
[345601864,1734378633687,-500.0,0.00024,30]
[345601865,1734378633697,-500.0,0.00024,30]
[345601866,1734378633707,-1477.959,0.00024,5]
[345601867,1734378633716,-74189.38570403,0.00024,2]
[345601868,1734378633730,-8967.90429597,0.00024,2]
[345601869,1734378633740,-2900.0,0.00024,8]
[345601870,1734378633749,-5104.6301,0.00024066,2]
[345601871,1734378633759,-150.0,0.00024072,2]
[345601872,1734378633769,-2800.0,0.000241,2]
[345601873,1734378633778,-1817.06522823,0.000241,8]
[345601874,1734378633798,-500.0,0.00022393,2]
[345601875,1734378633809,-236.88670735,0.00022393,2]
[345601876,1734378633819,-2582.93477177,0.000241,8]
[345601877,1734378633828,-587.0,0.00024135,2]
[345601878,1734378633838,-235.0,0.0002415,2]
[345601879,1734378633848,-150.0,0.00024153,4]
[345601880,1734378633858,-352.95,0.00024155,2]
[345601881,1734378633868,-285.09491053,0.00024173,2]
[345601882,1734378633878,-5800.0,0.000242,8]
[345601883,1734378633887,-150.0,0.00024235,2]
[345601884,1734378633897,-150.0,0.00024235,2]
[345601885,1734378633906,-1500.0,0.00024237,2]
[345601886,1734378633920,-1500.0,0.00024239,2]
[345601887,1734378633930,-150.0,0.00024244,2]
[345601888,1734378633940,-736.62428005,0.00024254,2]
[345601889,1734378633950,-150.0,0.0002426,2]
[345601890,1734378633961,-150.0,0.00024268,2]
[345601891,1734378633972,-152.32602937,0.00024274,2]
[345601892,1734378633981,-25310.53356143,0.0002428,2]
[345601893,1734378633993,-150.0,0.0002429,2]
[345601894,1734378634004,-7300.0,0.000243,8]
[345601895,1734378634015,-150.0,0.00024312,2]
[345601896,1734378634024,-150.0,0.00024318,2]
[345601897,1734378634034,-659.39153265,0.00024343,2]
[345601898,1734378634044,-165.57,0.00024349,2]
[345601899,1734378634054,-150.0,0.00024353,2]
[345601900,1734378634067,-150.0,0.00024355,2]
[345601901,1734378634077,-150.0,0.00024362,4]
[345601902,1734378634089,-150.0,0.00024364,2]
[345601903,1734378634099,-1000.0,0.00024383,2]
[345601904,1734378634108,-1000.0,0.00024383,2]
[345601905,1734378634119,-1000.0,0.00024383,2]
[345601906,1734378634129,-1000.0,0.00024383,2]
[345601907,1734378634138,-1000.0,0.00024383,2]
[345601908,1734378634147,-1000.0,0.00024383,2]
[345601909,1734378634157,-1000.0,0.00024383,2]
[345601910,1734378634166,-1000.0,0.00024383,2]
[345601911,1734378634175,-1000.0,0.00024383,2]
[345601912,1734378634185,-1000.0,0.00024383,2]
[345601913,1734378634195,-1500.0,0.0002439,2]
[345601914,1734378634204,-150.0,0.00024392,2]
[345601915,1734378634214,-1400.0,0.000244,8]
[345601916,1734378634224,-659.39153259,0.00024405,2]
[345601917,1734378634233,-150.0,0.00024406,2]
[345601918,1734378634243,-150.0,0.00024431,4]
[345601919,1734378634252,-272.46,0.00024435,2]
[345601920,1734378634262,-436.37,0.00024443,2]
[345601921,1734378634271,-769.47,0.00024443,2]
[345601922,1734378634281,-436.37,0.00024443,2]
[345601923,1734378634291,-436.37,0.00024443,2]
[345601924,1734378634301,-769.47,0.00024443,2]
[345601925,1734378634311,-436.37,0.00024443,2]
[345601926,1734378634321,-436.37,0.00024443,2]
[345601927,1734378634330,-769.47,0.00024443,2]
[345601928,1734378634340,-769.47,0.00024443,2]
[345601929,1734378634350,-874.9,0.00024443,2]
[345601930,1734378634359,-842.31,0.00024443,2]
[345601931,1734378634369,-769.47,0.00024443,2]
[345601932,1734378634379,-510.64,0.00024443,2]
[345601933,1734378634388,-150.0,0.00024448,2]
[345601934,1734378634398,-837.6235,0.00024457,2]
[345601935,1734378634408,-981.8709,0.00024457,2]
[345601936,1734378634418,-659.39153259,0.00024467,2]
[345601937,1734378634427,-1400.0,0.000245,8]
[345601938,1734378634437,-200.0,0.00024502,2]
[345601939,1734378634447,-150.0,0.00024504,2]
[345601940,1734378634456,-152.32602937,0.00024521,2]
[345601941,1734378634466,-659.39153259,0.00024529,2]
[345601942,1734378634475,-150.0,0.00024542,2]
[345601943,1734378634485,-1000.0,0.00024543,2]
[345601944,1734378634494,-150.0,0.00024546,2]
[345601945,1734378634504,-154.61,0.00024548,2]
[345601946,1734378634513,-40286.1382,0.00024557,2]
[345601947,1734378634523,-1138.7787,0.00024557,2]
[345601948,1734378634533,-1000.0,0.00024557,2]
[345601949,1734378634542,-838.76351946,0.00024557,2]
[345601950,1734378634552,-352.77954488,0.00024557,2]
[345601951,1734378634563,-2003.98256918,0.00024557,2]
[345601952,1734378634573,-2500.0,0.00024561,2]
[345601953,1734378634582,-150.0,0.00024561,2]
[345601954,1734378634592,-961.02,0.00024564,2]
[345601955,1734378634602,-150.0,0.00024568,2]
[345601956,1734378634611,-235.0,0.0002457,2]
[345601957,1734378634621,-1636.9,0.00024575,2]
[345601958,1734378634630,-150.0,0.00024577,2]
[345601959,1734378634640,-860.81684069,0.00024589,2]
[345601960,1734378634651,-25310.53356143,0.0002459,2]
[345601961,1734378634661,-659.39153259,0.00024591,2]
[345601962,1734378634670,-16144.65069356,0.00024599,2]
[345601963,1734378634680,-671.2439,0.000246,2]
[345601964,1734378634690,-1400.0,0.000246,8]
[345601965,1734378634700,-150.0,0.00024605,2]
[345601966,1734378634709,-838.76351942,0.00024614,2]
[345601967,1734378634719,-151.24,0.00024615,2]
[345601968,1734378634729,-64314.2423281,0.00024625,2]
[345601969,1734378637757,-3361.5,0.00024625,2]
[345601971,1734378637835,-5594.68480259,0.00024625,2]
[345601972,1734378637845,-659.39153259,0.00024652,2]
[345601973,1734378637855,-5000.0,0.00024656,20]
[345601974,1734378637864,-1000.0,0.00024657,2]
[345601975,1734378637873,-500.0,0.00024657,4]
[345601976,1734378637882,-609.48507966,0.00024657,4]
[345601977,1734378637891,-500.0,0.00024657,4]
[345601978,1734378637900,-500.0,0.00024657,4]
[345601979,1734378637909,-500.0,0.00024657,4]
[345601980,1734378637919,-176.69,0.00024657,4]
[345601981,1734378637929,-500.0,0.00024657,4]
[345601982,1734378637938,-500.0,0.00024657,4]
[345601983,1734378637947,-500.0,0.00024657,4]
[345601984,1734378637956,-500.0,0.00024657,4]
[345601985,1734378637966,-589.13,0.00024657,4]
[345601986,1734378637975,-500.0,0.00024657,4]
[345601987,1734378637984,-162.69592099,0.00024657,4]
[345601988,1734378637994,-168.77921816,0.00024657,4]
[345601989,1734378638004,-500.0,0.00024657,4]
[345601990,1734378638014,-500.0,0.00024657,4]
[345601991,1734378638023,-500.0,0.00024657,4]
[345601992,1734378638033,-500.0,0.00024657,4]
[345601993,1734378638042,-357.75,0.00024657,4]
[345601994,1734378638051,-301.74,0.00024657,4]
[345601995,1734378638063,-538.86,0.00024657,4]
[345601996,1734378638072,-500.0,0.00024657,4]
[345601997,1734378638081,-507.0,0.00024657,4]
[345601998,1734378638091,-380.35,0.00024657,4]
[345601999,1734378638101,-500.0,0.00024657,4]
[345602000,1734378638110,-500.0,0.00024657,4]
[345602001,1734378638120,-500.0,0.00024657,4]
[345602002,1734378638129,-500.0,0.00024657,4]
[345602003,1734378638138,-500.0,0.00024657,4]
[345602004,1734378638257,-500.0,0.00024657,4]
[345602005,1734378638268,-500.0,0.00024657,4]
[345602006,1734378638278,-500.0,0.00024657,4]
[345602007,1734378638287,-505.84282441,0.00024657,4]
[345602008,1734378638297,-500.0,0.00024657,4]
[345602009,1734378638306,-500.0,0.00024657,4]
[345602010,1734378638317,-500.0,0.00024657,4]
[345602011,1734378638327,-500.0,0.00024657,4]
[345602012,1734378638336,-237.0879169,0.00024657,4]
[345602013,1734378638345,-500.0,0.00024657,4]
[345602014,1734378638355,-167.42267701,0.00024657,4]
[345602015,1734378638365,-500.0,0.00024657,4]
[345602016,1734378638376,-500.0,0.00024657,4]
[345602017,1734378638386,-495.0,0.00024657,4]
[345602018,1734378638395,-500.0,0.00024657,4]
[345602019,1734378638405,-500.0,0.00024657,4]
[345602020,1734378638416,-500.0,0.00024657,4]
[345602021,1734378638426,-500.0,0.00024657,4]
[345602022,1734378638435,-500.0,0.00024657,4]
[345602023,1734378638444,-500.0,0.00024657,4]
[345602024,1734378638455,-500.0,0.00024657,4]
[345602025,1734378638466,-500.0,0.00024657,4]
[345602026,1734378638476,-500.0,0.00024657,4]
[345602027,1734378638487,-500.0,0.00024657,4]
[345602028,1734378638496,-310.10610369,0.00024657,4]
[345602029,1734378638505,-586.30649922,0.00024657,4]
[345602030,1734378638514,-500.0,0.00024657,4]
[345602031,1734378638523,-500.0,0.00024657,4]
[345602032,1734378638533,-500.0,0.00024657,4]
[345602033,1734378638542,-500.0,0.00024657,4]
[345602034,1734378638552,-500.0,0.00024657,4]
[345602035,1734378638564,-500.0,0.00024657,4]
[345602036,1734378638573,-500.0,0.00024657,4]
[345602037,1734378638583,-390.75803215,0.00024657,4]
[345602038,1734378638592,-500.0,0.00024657,4]
[345602039,1734378638601,-500.0,0.00024657,4]
[345602040,1734378638610,-500.0,0.00024657,4]
[345602041,1734378638619,-500.0,0.00024657,4]
[345602042,1734378638628,-500.0,0.00024657,4]
[345602043,1734378638638,-500.0,0.00024657,4]
[345602044,1734378638647,-500.0,0.00024657,4]
[345602045,1734378638657,-500.0,0.00024657,4]
[345602046,1734378638666,-500.0,0.00024657,4]
[345602047,1734378638676,-618.88396214,0.00024657,4]
[345602048,1734378638686,-500.0,0.00024657,4]
[345602049,1734378638696,-500.0,0.00024657,4]
[345602050,1734378638705,-500.0,0.00024657,4]
[345602051,1734378638715,-233.46765668,0.00024657,4]
[345602052,1734378638724,-500.0,0.00024657,4]
[345602053,1734378638733,-500.0,0.00024657,4]
[345602054,1734378638742,-500.0,0.00024657,4]
[345602055,1734378638752,-500.0,0.00024657,4]
[345602056,1734378638761,-500.0,0.00024657,4]
[345602057,1734378638770,-500.0,0.00024657,4]
[345602058,1734378638779,-500.0,0.00024657,4]
[345602059,1734378638788,-359.18,0.00024657,4]
[345602060,1734378638798,-500.0,0.00024657,4]
[345602061,1734378638807,-500.0,0.00024657,4]
[345602062,1734378638817,-500.0,0.00024657,4]
[345602063,1734378638827,-500.0,0.00024657,4]
[345602064,1734378638836,-500.0,0.00024657,4]
[345602065,1734378638846,-500.0,0.00024657,4]
[345602066,1734378638855,-500.0,0.00024657,4]
[345602067,1734378638864,-500.0,0.00024657,4]
[345602068,1734378638873,-500.0,0.00024657,4]
[345602069,1734378638882,-500.0,0.00024657,4]
[345602070,1734378638892,-500.0,0.00024657,4]
[345602071,1734378638901,-500.0,0.00024657,4]
[345602072,1734378638911,-500.0,0.00024657,4]
[345602073,1734378638922,-500.0,0.00024657,4]
[345602074,1734378638931,-500.0,0.00024657,4]
[345602075,1734378638941,-509.10365017,0.00024657,4]
[345602076,1734378638950,-500.0,0.00024657,4]
[345602077,1734378638960,-500.0,0.00024657,4]
[345602078,1734378638969,-500.0,0.00024657,4]
[345602079,1734378638978,-500.0,0.00024657,4]
[345602080,1734378638988,-500.0,0.00024657,4]
[345602081,1734378638999,-500.0,0.00024657,4]
[345602082,1734378639009,-500.0,0.00024657,4]
[345602083,1734378639018,-500.0,0.00024657,4]
[345602084,1734378639028,-346.24145324,0.00024657,4]
[345602085,1734378639038,-500.0,0.00024657,4]
[345602086,1734378639048,-500.0,0.00024657,4]
[345602087,1734378639058,-500.0,0.00024657,4]
[345602088,1734378639069,-500.0,0.00024657,4]
[345602089,1734378639078,-500.0,0.00024657,4]
[345602090,1734378639088,-500.0,0.00024657,4]
[345602091,1734378639098,-500.0,0.00024657,4]
[345602092,1734378639107,-500.0,0.00024657,4]
[345602093,1734378639117,-500.0,0.00024657,4]
[345602094,1734378639126,-500.0,0.00024657,4]
[345602095,1734378639137,-500.0,0.00024657,4]
[345602096,1734378639147,-500.0,0.00024657,4]
[345602097,1734378639156,-500.0,0.00024657,4]
[345602098,1734378639165,-500.0,0.00024657,4]
[345602099,1734378639175,-500.0,0.00024657,4]
[345602100,1734378639185,-500.0,0.00024657,4]
[345602101,1734378639194,-500.0,0.00024657,4]
[345602102,1734378639203,-456.16243858,0.00024657,4]
[345602103,1734378639213,-500.0,0.00024657,4]
[345602104,1734378639222,-500.0,0.00024657,4]
[345602105,1734378639231,-500.0,0.00024657,4]
[345602106,1734378639240,-500.0,0.00024657,4]
[345602107,1734378639250,-500.0,0.00024657,4]
[345602108,1734378639260,-500.0,0.00024657,4]
[345602109,1734378639269,-373.04437311,0.00024657,4]
[345602110,1734378639297,-126.95562689,0.00024657,4]
[345602111,1734378639306,-190.85197558,0.00024657,4]
[345602112,1734378639371,-309.14802442,0.00024657,4]
[345602113,1734378639381,-500.0,0.00024657,4]
[345602114,1734378639391,-500.0,0.00024657,4]
[345602115,1734378639401,-500.0,0.00024657,4]
[345602116,1734378639411,-500.0,0.00024657,4]
[345602117,1734378639420,-500.0,0.00024657,4]
[345602118,1734378639430,-500.0,0.00024657,4]
[345602119,1734378639439,-500.0,0.00024657,4]
[345602120,1734378639449,-500.0,0.00024657,4]
[345602121,1734378639459,-476.01837238,0.00024657,4]
[345602122,1734378639471,-23.98162762,0.00024657,4]
[345602123,1734378639481,-500.0,0.00024657,4]
[345602124,1734378639490,-500.0,0.00024657,4]
[345602125,1734378639499,-500.0,0.00024657,4]
[345602126,1734378639508,-500.0,0.00024657,4]
[345602127,1734378639518,-500.0,0.00024657,4]
[345602128,1734378639527,-500.0,0.00024657,4]
[345602129,1734378639537,-500.0,0.00024657,4]
[345602130,1734378639546,-353.36,0.00024657,4]
[345602131,1734378639556,-500.0,0.00024657,4]
[345602132,1734378639567,-500.0,0.00024657,4]
[345602133,1734378639576,-225.00276837,0.00024657,4]
[345602134,1734378639589,-274.99723163,0.00024657,4]
[345602135,1734378639599,-500.0,0.00024657,4]
[345602136,1734378639608,-500.0,0.00024657,4]
[345602137,1734378639617,-425.1256535,0.00024657,4]
[345602138,1734378639627,-122.90697573,0.00024657,4]
[345602139,1734378639638,-377.09302427,0.00024657,4]
[345602140,1734378639649,-500.0,0.00024657,4]
[345602141,1734378639659,-500.0,0.00024657,4]
[345602142,1734378639668,-500.0,0.00024657,4]
[345602143,1734378639678,-500.0,0.00024657,4]
[345602146,1734378639687,-187.28000033,0.00024657,4]
[345602147,1734378639697,-500.0,0.00024657,4]
[345602149,1734378639706,-500.0,0.00024657,4]
[345602150,1734378639715,-500.0,0.00024657,4]
[345602151,1734378639724,-500.0,0.00024657,4]
[345602152,1734378639733,-500.0,0.00024657,4]
[345602153,1734378639742,-589.58,0.00024657,4]
[345602155,1734378639751,-500.0,0.00024657,4]
[345602156,1734378639760,-500.0,0.00024657,4]
[345602157,1734378639769,-500.0,0.00024657,4]
[345602158,1734378639778,-500.0,0.00024657,4]
[345602159,1734378639787,-500.0,0.00024657,4]
[345602160,1734378639796,-156.6,0.00024657,4]
[345602161,1734378639805,-500.0,0.00024657,4]
[345602162,1734378639817,-500.0,0.00024657,4]
[345602163,1734378639826,-500.0,0.00024657,4]
[345602164,1734378639835,-500.0,0.00024657,4]
[345602165,1734378639844,-500.0,0.00024657,4]
[345602166,1734378639853,-500.0,0.00024657,4]
[345602167,1734378639863,-500.0,0.00024657,4]
[345602168,1734378639873,-500.0,0.00024657,4]
[345602169,1734378639882,-500.0,0.00024657,4]
[345602170,1734378639891,-500.0,0.00024657,4]
[345602171,1734378639901,-500.0,0.00024657,4]
[345602172,1734378639910,-188.01,0.00024657,4]
[345602173,1734378639922,-500.0,0.00024657,4]
[345602174,1734378639932,-500.0,0.00024657,4]
[345602175,1734378639941,-500.0,0.00024657,4]
[345602176,1734378639950,-500.0,0.00024657,4]
[345602177,1734378639959,-500.0,0.00024657,4]
[345602178,1734378639968,-500.0,0.00024657,4]
[345602179,1734378639978,-500.0,0.00024657,4]
[345602180,1734378639987,-191.5232834,0.00024657,4]
[345602181,1734378640120,-308.4767166,0.00024657,4]
[345602182,1734378640129,-500.0,0.00024657,4]
[345602183,1734378640139,-500.0,0.00024657,4]
[345602184,1734378640148,-500.0,0.00024657,4]
[345602185,1734378640158,-549.96,0.00024657,4]
[345602186,1734378640168,-500.0,0.00024657,4]
[345602187,1734378640177,-500.0,0.00024657,4]
[345602188,1734378640187,-500.0,0.00024657,4]
[345602189,1734378640196,-500.0,0.00024657,4]
[345602190,1734378640205,-500.0,0.00024657,4]
[345602191,1734378640214,-500.0,0.00024657,4]
[345602192,1734378640223,-500.0,0.00024657,4]
[345602194,1734378640233,-500.0,0.00024657,4]
[345602195,1734378640242,-500.0,0.00024657,4]
[345602196,1734378640251,-500.0,0.00024657,4]
[345602197,1734378640262,-500.0,0.00024657,4]
[345602198,1734378640272,-500.0,0.00024657,4]
[345602199,1734378640282,-500.0,0.00024657,4]
[345602200,1734378640292,-500.0,0.00024657,4]
[345602201,1734378640301,-500.0,0.00024657,4]
[345602202,1734378640311,-500.0,0.00024657,4]
[345602203,1734378640321,-500.0,0.00024657,4]
[345602204,1734378640331,-500.0,0.00024657,4]
[345602205,1734378640340,-500.0,0.00024657,4]
[345602206,1734378640350,-500.0,0.00024657,4]
[345602207,1734378640359,-500.0,0.00024657,4]
[345602208,1734378640369,-500.0,0.00024657,4]
[345602209,1734378640379,-500.0,0.00024657,4]
[345602218,1734378640498,-502.95251092,0.00024657,4]
[345602220,1734378640507,-571.32,0.00024657,4]
[345602222,1734378640516,-500.0,0.00024657,4]
[345602224,1734378640526,-500.0,0.00024657,4]
[345602226,1734378640535,-500.0,0.00024657,4]
[345602228,1734378640545,-500.0,0.00024657,4]
[345602230,1734378640554,-500.0,0.00024657,4]
[345602232,1734378640567,-500.0,0.00024657,4]
[345602234,1734378640576,-258.9,0.00024657,4]
[345602237,1734378640586,-500.0,0.00024657,4]
[345602238,1734378640596,-500.0,0.00024657,4]
[345602240,1734378640605,-500.0,0.00024657,4]
[345602242,1734378640615,-604.39366948,0.00024657,4]
[345602244,1734378640624,-500.0,0.00024657,4]
[345602246,1734378640633,-500.0,0.00024657,4]
[345602248,1734378640642,-180.62,0.00024657,4]
[345602250,1734378640651,-500.0,0.00024657,4]
[345602252,1734378640661,-500.0,0.00024657,4]
[345602254,1734378640670,-500.0,0.00024657,4]
[345602256,1734378640679,-500.0,0.00024657,4]
[345602258,1734378640688,-500.0,0.00024657,4]
[345602260,1734378640698,-500.0,0.00024657,4]
[345602262,1734378640707,-229.62342864,0.00024657,4]
[345602264,1734378640716,-500.0,0.00024657,4]
[345602266,1734378640726,-576.08,0.00024657,4]
[345602268,1734378640735,-500.0,0.00024657,4]
[345602270,1734378640745,-500.0,0.00024657,4]
[345602271,1734378640754,-500.0,0.00024657,4]
[345602272,1734378640764,-500.0,0.00024657,4]
[345602273,1734378640773,-500.0,0.00024657,4]
[345602274,1734378640782,-500.0,0.00024657,4]
[345602275,1734378640792,-500.0,0.00024657,4]
[345602276,1734378640801,-501.83689898,0.00024657,4]
[345602277,1734378640810,-500.0,0.00024657,4]
[345602278,1734378640821,-389.92528818,0.00024657,4]
[345602279,1734378640830,-500.0,0.00024657,4]
[345602280,1734378640840,-500.0,0.00024657,4]
[345602281,1734378640850,-500.0,0.00024657,4]
[345602282,1734378640859,-500.0,0.00024657,4]
[345602283,1734378640868,-500.0,0.00024657,4]
[345602284,1734378640878,-500.0,0.00024657,4]
[345602285,1734378640888,-500.0,0.00024657,4]
[345602286,1734378640897,-500.0,0.00024657,4]
[345602287,1734378640906,-181.23,0.00024657,4]
[345602288,1734378640917,-500.0,0.00024657,4]
[345602289,1734378640929,-500.0,0.00024657,4]
[345602290,1734378640939,-500.0,0.00024657,4]
[345602291,1734378640948,-1000.0,0.00024657,2]
[345602292,1734378640959,-500.0,0.00024657,4]
[345602293,1734378640968,-1000.0,0.00024657,2]
[345602294,1734378640977,-1000.0,0.00024657,2]
[345602295,1734378640986,-500.0,0.00024657,4]
[345602296,1734378640998,-1000.0,0.00024657,2]
[345602297,1734378641008,-512.97784298,0.00024657,4]
[345602298,1734378641017,-1000.0,0.00024657,2]
[345602299,1734378641027,-1000.0,0.00024657,2]
[345602300,1734378641037,-554.74855137,0.00024657,4]
[345602301,1734378641047,-1000.0,0.00024657,2]
[345602302,1734378641056,-1000.0,0.00024657,2]
[345602303,1734378641067,-1000.0,0.00024657,2]
[345602304,1734378641076,-1000.0,0.00024657,2]
[345602305,1734378641086,-1000.0,0.00024657,2]
[345602306,1734378641095,-1000.0,0.00024657,2]
[345602307,1734378641105,-500.0,0.00024657,4]
[345602308,1734378641114,-500.0,0.00024657,4]
[345602309,1734378641123,-1000.0,0.00024657,2]
[345602310,1734378641132,-1000.0,0.00024657,2]